[Event "NJSK 2024 C"]
[Site "Groningen, Netherlands"]
[Date "2024.04.30"]
[Round "5.4"]
[White "Darie, Aden"]
[Black "Ambrona Navarro, Himar"]
[Result "1/2-1/2"]
[TimeControl "90min/40moves + 30min + 30sec/move"]
[WhiteElo "1923"]
[BlackElo "1963"]

1. e4 {[%clk 01:30:57]} {[%emt 00:00:02]} c5 {[%clk 01:30:26]} {[%emt
00:00:35]} 2. Nf3 {[%clk 01:31:21]} {[%emt 00:00:06]} d6 {[%clk 01:30:45]}
{[%emt 00:00:10]} 3. d4 {[%clk 01:31:46]} {[%emt 00:00:05]} cxd4 {[%clk
01:31:07]} {[%emt 00:00:09]} 4. Nxd4 {[%clk 01:32:11]} {[%emt 00:00:04]} Nf6
{[%clk 01:31:23]} {[%emt 00:00:14]} 5. f3 {[%clk 01:32:34]} {[%emt 00:00:07]}
g6 {[%clk 01:31:19]} {[%emt 00:00:34]} 6. c4 {[%clk 01:32:58]} {[%emt
00:00:05]} a6 {[%clk 01:29:54]} {[%emt 00:01:57]} 7. Nc3 {[%clk 01:33:22]}
{[%emt 00:00:06]} Bg7 {[%clk 01:29:33]} {[%emt 00:00:50]} 8. Be3 {[%clk
01:33:37]} {[%emt 00:00:15]} h5 {[%clk 01:28:23]} {[%emt 00:01:41]} 9. Be2
{[%clk 01:33:51]} {[%emt 00:00:14]} Nbd7 {[%clk 01:27:06]} {[%emt 00:01:48]} 10.
Qd2 {[%clk 01:34:10]} {[%emt 00:00:11]} b6 {[%clk 01:25:40]} {[%emt 00:01:55]}
11. Rc1 {[%clk 01:34:15]} {[%emt 00:00:27]} Bb7 {[%clk 01:25:46]} {[%emt
00:00:23]} 12. O-O {[%clk 01:34:10]} {[%emt 00:00:35]} Rc8 {[%clk 01:24:43]}
{[%emt 00:01:32]} 13. Rfd1 {[%clk 01:34:33]} {[%emt 00:00:08]} O-O {[%clk
01:23:51]} {[%emt 00:01:22]} 14. Bf1 {[%clk 01:34:53]} {[%emt 00:00:10]} Nc5
{[%clk 01:22:11]} {[%emt 00:02:09]} 15. b3 {[%clk 01:34:51]} {[%emt 00:00:33]}
Qc7 {[%clk 01:20:29]} {[%emt 00:02:11]} 16. Nd5 {[%clk 01:28:23]} {[%emt
00:06:59]} Bxd5 {[%clk 01:14:50]} {[%emt 00:06:09]} 17. cxd5 {[%clk 01:28:36]}
{[%emt 00:00:17]} Qb7 {[%clk 01:11:35]} {[%emt 00:03:43]} 18. b4 {[%clk
01:28:10]} {[%emt 00:00:58]} Ncd7 {[%clk 01:10:46]} {[%emt 00:01:18]} 19. Nc6
{[%clk 01:25:30]} {[%emt 00:03:11]} Ne5 {[%clk 01:00:45]} {[%emt 00:10:31]} 20.
Nxe5 {[%clk 01:25:27]} {[%emt 00:00:34]} dxe5 {[%clk 01:00:48]} {[%emt
00:00:26]} 21. b5 {[%clk 01:21:23]} {[%emt 00:04:33]} axb5 {[%clk 00:52:22]}
{[%emt 00:08:58]} 22. Bxb5 {[%clk 01:21:42]} {[%emt 00:00:11]} Rfd8 {[%clk
00:41:06]} {[%emt 00:11:44]} 23. Qe2 {[%clk 01:19:45]} {[%emt 00:02:27]} Rb8
{[%clk 00:38:07]} {[%emt 00:03:27]} 24. Rc6 {[%clk 01:18:22]} {[%emt 00:01:56]}
Rd6 {[%clk 00:36:31]} {[%emt 00:02:05]} 25. Rdc1 {[%clk 01:17:52]} {[%emt
00:01:00]} Rxc6 {[%clk 00:35:05]} {[%emt 00:01:57]} 26. Rxc6 {[%clk 01:17:53]}
{[%emt 00:00:29]} Qa7 {[%clk 00:33:39]} {[%emt 00:01:55]} 27. a4 {[%clk
01:12:02]} {[%emt 00:06:23]} Nd7 {[%clk 00:31:25]} {[%emt 00:02:40]} 28. Qc2
{[%clk 01:11:57]} {[%emt 00:00:38]} Nc5 {[%clk 00:27:52]} {[%emt 00:04:03]} 29.
Bxc5 {[%clk 01:11:49]} {[%emt 00:00:38]} bxc5 {[%clk 00:28:16]} {[%emt
00:00:06]} 30. Qxc5 {[%clk 01:12:07]} {[%emt 00:00:12]} Qxc5+ {[%clk 00:27:26]}
{[%emt 00:01:20]} 31. Rxc5 {[%clk 01:12:29]} {[%emt 00:00:08]} Bh6 {[%clk
00:27:53]} {[%emt 00:00:02]} 32. Rc7 {[%clk 01:11:56]} {[%emt 00:01:04]} Be3+
{[%clk 00:27:21]} {[%emt 00:01:01]} 33. Kf1 {[%clk 01:12:18]} {[%emt 00:00:09]}
Kf8 {[%clk 00:27:45]} {[%emt 00:00:06]} 34. Ke2 {[%clk 01:12:32]} {[%emt
00:00:16]} Bb6 {[%clk 00:27:57]} {[%emt 00:00:18]} 35. Rc6 {[%clk 01:12:49]}
{[%emt 00:00:13]} Bd4 {[%clk 00:27:45]} {[%emt 00:00:42]} 36. Kd3 {[%clk
01:12:56]} {[%emt 00:00:22]} Bg1 {[%clk 00:25:20]} {[%emt 00:02:54]} 37. h3
{[%clk 01:13:18]} {[%emt 00:00:10]} Kg7 {[%clk 00:25:33]} {[%emt 00:00:15]} 38.
Kc4 {[%clk 01:13:28]} {[%emt 00:00:21]} Rb6 {[%clk 00:24:48]} {[%emt 00:01:14]}
39. Rc7 {[%clk 01:13:20]} {[%emt 00:00:41]} Kf6 {[%clk 00:24:06]} {[%emt
00:01:10]} 40. a5 {[%clk 01:13:42]} {[%emt 00:00:09]} Rb8 {[%clk 00:24:10]}
{[%emt 00:00:24]} 41. a6 {[%clk 01:13:54]} {[%emt 00:00:20]} Ra8 {[%clk
00:24:13]} {[%emt 00:00:25]} 42. Kb4 {[%clk 01:13:49]} {[%emt 00:00:37]} Be3
{[%clk 00:23:52]} {[%emt 00:00:50]} 43. Ka5 {[%clk 01:12:29]} {[%emt 00:01:52]}
Rb8 {[%clk 00:23:59]} {[%emt 00:00:18]} 44. Rb7 {[%clk 01:11:12]} {[%emt
00:01:52]} Rxb7 {[%clk 00:22:09]} {[%emt 00:02:19]} 45. axb7 {[%clk 01:11:38]}
{[%emt 00:00:04]} Ba7 {[%clk 00:22:33]} {[%emt 00:00:06]} 46. Ka6 {[%clk
01:12:02]} {[%emt 00:00:06]} Bb8 {[%clk 00:22:02]} {[%emt 00:01:01]} 47. Kb6
{[%clk 01:12:10]} {[%emt 00:00:22]} e6 {[%clk 00:20:25]} {[%emt 00:02:06]} 48.
Kc6 {[%clk 01:08:37]} {[%emt 00:04:04]} Ke7 {[%clk 00:20:23]} {[%emt 00:00:32]}
49. Bc4 {[%clk 01:08:41]} {[%emt 00:00:27]} Bd6 {[%clk 00:19:31]} {[%emt
00:01:16]} 50. dxe6 {[%clk 01:07:59]} {[%emt 00:01:17]} fxe6 {[%clk 00:19:44]}
{[%emt 00:00:17]} 51. g4 {[%clk 01:08:17]} {[%emt 00:00:11]} h4 {[%clk
00:19:46]} {[%emt 00:00:28]} 52. Kb6 {[%clk 01:08:21]} {[%emt 00:00:27]} Bb8
{[%clk 00:20:04]} {[%emt 00:00:12]} 53. Kc6 {[%clk 01:08:37]} {[%emt 00:00:14]}
g5 {[%clk 00:20:18]} {[%emt 00:00:16]} 1/2-1/2

[Event "NJSK 2024 C"]
[Site "Groningen, Netherlands"]
[Date "2024.04.30"]
[Round "5.5"]
[White "De Jong, Lode"]
[Black "Leenen, Boyd"]
[Result "1-0"]
[TimeControl "90min/40moves + 30min + 30sec/move"]
[WhiteElo "1587"]
[BlackElo "1920"]

1. d4 {[%clk 01:30:59]} Nf6 {[%clk 01:30:52]} {[%emt 00:00:08]} 2. c4 {[%clk
01:31:26]} {[%emt 00:00:03]} e6 {[%clk 01:31:17]} {[%emt 00:00:05]} 3. g3
{[%clk 01:31:54]} {[%emt 00:00:02]} d5 {[%clk 01:31:38]} {[%emt 00:00:09]} 4.
Nf3 {[%clk 01:32:20]} {[%emt 00:00:04]} c6 {[%clk 01:31:54]} {[%emt 00:00:14]}
5. Bg2 {[%clk 01:32:46]} {[%emt 00:00:04]} Be7 {[%clk 01:32:19]} {[%emt
00:00:06]} 6. O-O {[%clk 01:33:09]} {[%emt 00:00:06]} O-O {[%clk 01:32:42]}
{[%emt 00:00:06]} 7. Qc2 {[%clk 01:33:36]} {[%emt 00:00:04]} Nbd7 {[%clk
01:32:31]} {[%emt 00:00:41]} 8. Nbd2 {[%clk 01:33:50]} {[%emt 00:00:16]} Re8
{[%clk 01:31:34]} {[%emt 00:01:27]} 9. e4 {[%clk 01:33:49]} {[%emt 00:00:32]}
dxe4 {[%clk 01:31:24]} {[%emt 00:00:40]} 10. Nxe4 {[%clk 01:34:06]} {[%emt
00:00:12]} Nxe4 {[%clk 01:31:31]} {[%emt 00:00:23]} 11. Qxe4 {[%clk 01:34:31]}
{[%emt 00:00:05]} Nf6 {[%clk 01:31:54]} {[%emt 00:00:08]} 12. Qe2 {[%clk
01:34:55]} {[%emt 00:00:06]} Bd6 {[%clk 01:22:59]} {[%emt 00:09:24]} 13. Rd1
{[%clk 01:20:30]} {[%emt 00:14:55]} Bd7 {[%clk 01:15:00]} {[%emt 00:08:30]} 14.
Ne5 {[%clk 01:17:33]} {[%emt 00:03:26]} Rc8 {[%clk 01:13:50]} {[%emt 00:01:40]}
15. Bg5 {[%clk 01:09:31]} {[%emt 00:08:32]} Be7 {[%clk 01:09:51]} {[%emt
00:04:30]} 16. a3 {[%clk 01:00:39]} {[%emt 00:09:22]} Qc7 {[%clk 01:01:15]}
{[%emt 00:09:05]} 17. b4 {[%clk 00:50:44]} {[%emt 00:10:25]} Nd5 {[%clk
00:55:13]} {[%emt 00:06:33]} 18. cxd5 {[%clk 00:37:28]} {[%emt 00:13:47]} Bxg5
{[%clk 00:55:34]} {[%emt 00:00:09]} 19. Qh5 {[%clk 00:37:42]} {[%emt 00:00:15]}
Bf6 {[%clk 00:54:08]} {[%emt 00:01:56]} 20. Qxf7+ {[%clk 00:36:37]} {[%emt
00:01:35]} Kh8 {[%clk 00:54:35]} {[%emt 00:00:03]} 21. Qxd7 {[%clk 00:33:57]}
{[%emt 00:03:10]} Bxe5 {[%clk 00:54:55]} {[%emt 00:00:10]} 22. dxc6 {[%clk
00:33:18]} {[%emt 00:01:10]} Rcd8 {[%clk 00:53:50]} {[%emt 00:01:34]} 23. Qxc7
{[%clk 00:32:04]} {[%emt 00:01:45]} Bxc7 {[%clk 00:54:14]} {[%emt 00:00:05]} 24.
cxb7 {[%clk 00:32:24]} {[%emt 00:00:10]} Bb6 {[%clk 00:54:17]} {[%emt
00:00:27]} 25. Rac1 {[%clk 00:29:36]} {[%emt 00:03:18]} Kg8 {[%clk 00:53:01]}
{[%emt 00:01:46]} 26. Rc4 {[%clk 00:28:04]} {[%emt 00:02:02]} Kf8 {[%clk
00:52:54]} {[%emt 00:00:37]} 27. Rdc1 {[%clk 00:22:54]} {[%emt 00:05:40]} a5
{[%clk 00:53:09]} {[%emt 00:00:15]} 28. bxa5 {[%clk 00:22:37]} {[%emt
00:00:47]} Ba7 {[%clk 00:53:14]} {[%emt 00:00:26]} 29. Rc8 {[%clk 00:22:35]}
{[%emt 00:00:31]} Ke7 {[%clk 00:53:16]} {[%emt 00:00:27]} 30. R1c7+ {[%clk
00:20:30]} {[%emt 00:02:36]} Rd7 31. Rxd7+ {[%clk 00:20:51]} Kxd7 {[%emt
00:00:09]} 32. Bc6+ {[%clk 00:21:15]} {[%emt 00:00:04]} 1-0

[Event "NJSK 2024 C"]
[Site "Groningen, Netherlands"]
[Date "2024.04.30"]
[Round "5.6"]
[White "Lalkota, Sai Pranav Tejas"]
[Black "Grooten, Tommy"]
[Result "0-1"]
[TimeControl "90min/40moves + 30min + 30sec/move"]
[WhiteElo "1782"]
[BlackElo "2018"]

1. c4 {[%clk 01:30:58]} {[%emt 00:00:03]} c5 {[%clk 01:30:56]} {[%emt
00:00:04]} 2. g3 {[%clk 01:31:21]} {[%emt 00:00:06]} g6 {[%clk 01:31:14]}
{[%emt 00:00:12]} 3. Bg2 {[%clk 01:31:44]} {[%emt 00:00:08]} Bg7 {[%clk
01:31:39]} {[%emt 00:00:05]} 4. Nc3 {[%clk 01:32:06]} {[%emt 00:00:07]} Nc6
{[%clk 01:32:05]} {[%emt 00:00:04]} 5. Nf3 {[%clk 01:31:53]} {[%emt 00:00:43]}
d6 {[%clk 01:31:46]} {[%emt 00:00:50]} 6. O-O {[%clk 01:32:12]} {[%emt
00:00:11]} e6 {[%clk 01:31:40]} {[%emt 00:00:36]} 7. e3 {[%clk 01:32:10]}
{[%emt 00:00:32]} Nge7 {[%clk 01:31:41]} {[%emt 00:00:29]} 8. d4 {[%clk
01:31:59]} {[%emt 00:00:41]} O-O {[%clk 01:29:00]} {[%emt 00:03:11]} 9. Ne2
{[%clk 01:27:49]} {[%emt 00:04:40]} Qc7 {[%clk 01:20:33]} {[%emt 00:08:57]} 10.
Bd2 {[%emt 00:03:26]} e5 {[%clk 01:16:27]} {[%emt 00:04:28]} 11. d5 {[%clk
01:23:14]} {[%emt 00:02:17]} Nd8 {[%clk 01:16:24]} {[%emt 00:00:31]} 12. Bc3
{[%clk 01:23:02]} {[%emt 00:00:43]} f5 {[%clk 01:15:50]} {[%emt 00:01:05]} 13.
Qc2 {[%clk 01:18:57]} {[%emt 00:04:34]} Nf7 {[%clk 01:12:11]} {[%emt 00:04:09]}
14. Nd2 {[%clk 01:16:21]} {[%emt 00:03:07]} g5 {[%clk 01:10:29]} {[%emt
00:02:11]} 15. f4 {[%clk 01:16:24]} {[%emt 00:00:27]} Bd7 {[%clk 01:07:17]}
{[%emt 00:03:41]} 16. Nf3 {[%clk 01:12:01]} {[%emt 00:04:54]} h6 {[%clk
01:04:53]} {[%emt 00:02:55]} 17. Rfd1 {[%clk 01:11:55]} {[%emt 00:00:35]} g4
{[%clk 00:56:05]} {[%emt 00:09:18]} 18. Nd2 {[%clk 01:07:09]} {[%emt 00:05:15]}
Rae8 {[%clk 00:56:01]} {[%emt 00:00:35]} 19. b4 {[%clk 01:06:28]} {[%emt
00:01:11]} cxb4 {[%clk 00:55:15]} {[%emt 00:01:16]} 20. Bxb4 {[%clk 01:06:45]}
{[%emt 00:00:13]} exf4 {[%clk 00:55:00]} {[%emt 00:00:46]} 21. Nxf4 {[%clk
01:06:34]} {[%emt 00:00:40]} Bxa1 {[%clk 00:47:52]} {[%emt 00:07:37]} 22. Rxa1
{[%clk 01:07:03]} {[%emt 00:00:02]} Ne5 {[%clk 00:47:23]} {[%emt 00:01:00]} 23.
Bc3 {[%clk 01:03:16]} {[%emt 00:04:16]} N7g6 {[%clk 00:45:02]} {[%emt
00:02:50]} 24. Bxe5 {[%clk 01:02:42]} {[%emt 00:01:04]} Nxe5 {[%clk 00:45:20]}
{[%emt 00:00:12]} 25. Ne6 {[%clk 01:02:51]} {[%emt 00:00:21]} Bxe6 {[%clk
00:45:11]} {[%emt 00:00:39]} 26. dxe6 {[%clk 01:03:11]} {[%emt 00:00:10]} Kg7
{[%clk 00:42:51]} {[%emt 00:02:50]} 27. Bd5 {[%clk 00:59:50]} {[%emt 00:03:51]}
b5 {[%clk 00:40:42]} {[%emt 00:02:40]} 28. Rb1 {[%clk 00:59:54]} {[%emt
00:00:24]} Rb8 {[%clk 00:38:13]} {[%emt 00:03:00]} 29. Rf1 {[%clk 00:59:35]}
{[%emt 00:00:48]} bxc4 {[%clk 00:37:24]} {[%emt 00:01:21]} 30. Rxf5 {[%clk
00:59:52]} {[%emt 00:00:12]} Rxf5 {[%clk 00:33:38]} {[%emt 00:04:16]} 31. Qxf5
{[%emt 00:01:15]} Rf8 {[%clk 00:33:52]} {[%emt 00:00:13]} 32. Qc2 {[%clk
00:59:18]} {[%emt 00:00:22]} Qc5 {[%clk 00:27:03]} {[%emt 00:07:19]} 33. e7
{[%clk 00:58:24]} {[%emt 00:01:24]} Qxe3+ {[%clk 00:25:59]} {[%emt 00:01:34]}
34. Kh1 {[%clk 00:58:52]} {[%emt 00:00:02]} Qe1+ {[%clk 00:26:17]} {[%emt
00:00:13]} 0-1

[Event "NJSK 2024 C"]
[Site "Groningen, Netherlands"]
[Date "2024.04.30"]
[Round "5.7"]
[White "Zecha, Oscar"]
[Black "Frederiks, Jesse"]
[Result "1-0"]
[TimeControl "90min/40moves + 30min + 30sec/move"]
[WhiteElo "1998"]
[BlackElo "1718"]

1. e4 {[%clk 01:30:57]} {[%emt 00:00:02]} e6 {[%clk 01:30:18]} {[%emt
00:00:42]} 2. d4 {[%clk 01:31:20]} {[%emt 00:00:08]} d5 {[%clk 01:30:46]}
{[%emt 00:00:03]} 3. e5 {[%clk 01:31:35]} {[%emt 00:00:14]} c5 {[%clk
01:31:12]} {[%emt 00:00:04]} 4. c3 {[%clk 01:32:03]} {[%emt 00:00:02]} Nc6
{[%clk 01:31:36]} {[%emt 00:00:05]} 5. Nf3 {[%clk 01:32:30]} {[%emt 00:00:05]}
Qb6 {[%clk 01:31:59]} {[%emt 00:00:07]} 6. Bd3 {[%clk 01:32:54]} {[%emt
00:00:06]} Bd7 {[%clk 01:31:09]} {[%emt 00:01:19]} 7. O-O {[%clk 01:33:14]}
{[%emt 00:00:10]} cxd4 {[%clk 01:30:10]} {[%emt 00:01:29]} 8. Re1 {[%clk
01:33:00]} {[%emt 00:00:43]} Nge7 {[%clk 01:19:06]} {[%emt 00:11:35]} 9. a3
{[%clk 01:32:52]} {[%emt 00:00:39]} Nf5 {[%clk 01:06:07]} {[%emt 00:13:28]} 10.
b4 {[%clk 01:30:51]} {[%emt 00:02:32]} Rc8 {[%clk 01:04:28]} {[%emt 00:02:08]}
11. b5 {[%clk 01:14:39]} {[%emt 00:16:42]} Na5 {[%clk 00:57:53]} {[%emt
00:07:04]} 12. Bxf5 {[%clk 01:12:00]} {[%emt 00:03:10]} exf5 {[%clk 00:58:07]}
{[%emt 00:00:16]} 13. Nxd4 {[%clk 01:07:19]} {[%emt 00:05:11]} Bc5 {[%clk
00:53:58]} {[%emt 00:04:39]} 14. a4 {[%clk 01:05:00]} {[%emt 00:02:50]} Bxd4
{[%clk 00:53:55]} {[%emt 00:00:32]} 15. cxd4 {[%clk 01:04:05]} {[%emt
00:01:25]} Rxc1 {[%clk 00:53:40]} {[%emt 00:00:45]} 16. Qxc1 {[%clk 01:04:30]}
{[%emt 00:00:05]} Nb3 {[%clk 00:54:04]} {[%emt 00:00:07]} 17. Qb2 {[%clk
01:00:34]} {[%emt 00:04:25]} Nxa1 {[%clk 00:54:26]} {[%emt 00:00:08]} 18. Qxa1
{[%clk 01:01:02]} {[%emt 00:00:02]} O-O {[%clk 00:54:26]} {[%emt 00:00:30]} 19.
Rc1 {[%clk 00:55:42]} {[%emt 00:05:50]} f4 {[%clk 00:33:42]} {[%emt 00:21:14]}
20. Nd2 {[%clk 00:51:12]} {[%emt 00:05:01]} Bg4 {[%clk 00:22:42]} {[%emt
00:11:30]} 21. h3 {[%clk 00:45:15]} {[%emt 00:06:26]} Bf5 {[%clk 00:20:45]}
{[%emt 00:02:26]} 22. Rc5 {[%clk 00:41:59]} {[%emt 00:03:47]} Qg6 {[%clk
00:14:18]} {[%emt 00:06:57]} 23. Qc3 {[%clk 00:35:11]} {[%emt 00:07:18]} Be6
{[%clk 00:12:49]} {[%emt 00:01:59]} 24. Kh2 {[%clk 00:34:04]} {[%emt 00:01:37]}
Qf5 {[%clk 00:11:16]} {[%emt 00:02:02]} 25. Qf3 {[%clk 00:30:03]} {[%emt
00:04:32]} h5 {[%clk 00:10:11]} {[%emt 00:01:35]} 26. Rc7 {[%clk 00:29:05]}
{[%emt 00:01:27]} Rb8 {[%clk 00:09:48]} {[%emt 00:00:53]} 27. Nb3 {[%clk
00:25:33]} {[%emt 00:04:02]} g6 {[%clk 00:05:40]} {[%emt 00:04:39]} 28. Nc5
{[%clk 00:25:05]} {[%emt 00:00:58]} b6 {[%clk 00:05:41]} {[%emt 00:00:29]} 29.
Nxe6 {[%clk 00:21:53]} {[%emt 00:03:42]} fxe6 {[%clk 00:06:00]} {[%emt
00:00:11]} 30. Qc3 {[%clk 00:21:13]} {[%emt 00:01:09]} Rf8 {[%clk 00:04:08]}
{[%emt 00:02:23]} 31. Rxa7 {[%clk 00:19:53]} {[%emt 00:01:50]} f3 {[%clk
00:03:10]} {[%emt 00:01:28]} 32. Qc7 {[%clk 00:19:44]} {[%emt 00:00:39]} Rf7
{[%clk 00:03:21]} {[%emt 00:00:18]} 33. Qxf7+ {[%clk 00:20:04]} {[%emt
00:00:11]} Qxf7 {[%clk 00:03:47]} {[%emt 00:00:04]} 34. Rxf7 {[%clk 00:20:31]}
{[%emt 00:00:03]} Kxf7 {[%clk 00:04:09]} {[%emt 00:00:08]} 35. a5 {[%clk
00:20:46]} {[%emt 00:00:16]} bxa5 {[%clk 00:04:05]} {[%emt 00:00:33]} 36. b6
{[%clk 00:21:12]} {[%emt 00:00:04]} g5 {[%clk 00:04:26]} {[%emt 00:00:08]} 37.
gxf3 {[%clk 00:21:30]} {[%emt 00:00:12]} Kg6 {[%clk 00:04:50]} {[%emt
00:00:07]} 38. b7 {[%clk 00:21:58]} {[%emt 00:00:02]} Kf5 {[%clk 00:05:15]}
{[%emt 00:00:06]} 39. b8=Q {[%clk 00:22:23]} {[%emt 00:00:04]} a4 {[%clk
00:05:30]} {[%emt 00:00:15]} 40. Qg8 {[%clk 00:22:42]} {[%emt 00:00:11]} g4
{[%clk 00:05:39]} {[%emt 00:00:21]} 41. Qf7+ {[%clk 00:22:49]} {[%emt
00:00:23]} Kg5 {[%clk 00:06:00]} {[%emt 00:00:09]} 42. h4+ {[%clk 00:23:16]}
{[%emt 00:00:04]} Kh6 {[%clk 00:06:14]} {[%emt 00:00:15]} 43. fxg4 {[%clk
00:23:21]} {[%emt 00:00:26]} hxg4 {[%clk 00:06:27]} {[%emt 00:00:17]} 44. h5
{[%clk 00:23:35]} {[%emt 00:00:16]} Kg5 {[%clk 00:06:52]} {[%emt 00:00:04]} 45.
Kg3 {[%clk 00:23:59]} {[%emt 00:00:05]} a3 {[%clk 00:07:10]} {[%emt 00:00:12]}
46. Qg6# {[%clk 00:24:26]} {[%emt 00:00:03]} 1-0